Workbook

Sheet ReadMe
A1: Generating the PERT Schedule
A3: Step 1 | B3: On the LPERT sheet, define the PM Model Structure
B4: and name it as PERT. The structure is expected to contain:
C6: Column A: | D6: Activity IDs (A,B,C,...,Z,AA,AB,AC,...,AZ,...)
C7: Column B: | D7: Activity description
C8: Column C: | D8: Immediate predecessors separated with a comma (if any)
C9: Note: If there is no predecessor, leave the cell empty.
C10: Column D: | D10: Activity optimistic completion times (a)
C11: Column E: | D11: Activity most likely completion times (m)
C12: Column F: | D12: Activity pessimistic completion times (b)
C13: Row 1: | D13: A header, describing the columns (do not include it within
D14: the PERT-named range).
B16: Here's an example of such a structure (with name PERT boxed):
A32: Step 2 | B32: To generate the PERT schedule, execute the macPERT macro.
B33: Invoke the {Data orTools} | Macro | macPERT | Run command
B34: or (in this workbook) click this button:
C41: Jerzy J Letkowski

Sheet LPERT
A1: Task ID | B1: Description | C1: iPreds | D1: a | E1: m | F1: b | G1: avgDuration | H1: varDuration | I1: eStart | J1: eFinish | K1: lStart | L1: lFinish | M1: tSlack | N1: fSlack | O1: critTask | P1: critPath
A2: A | B2: Excavating | D2: 5 | E2: 7 | F2: 12 | G2: =ROUND((D2+4*E2+F2)/6,6) -> 7.5 | H2: =ROUND(((F2-D2)/6)^2,6) -> 1.361111 | I2: 0 | J2: =G2+I2 -> 7.5 | K2: =L2-G2 -> 1.065814104e-14 | L2: =MIN(K3,K4) -> 7.5 | M2: =K2-I2 -> 1.065814104e-14 | N2: =MIN(I3,I4)-I2-G2 -> 0 | O2: =IF(ABS(M2)<=0.00001,"Yes","No") -> Yes | P2: Yes
A3: B | B3: Pouring Foundation | C3: A | D3: 2 | E3: 3 | F3: 5 | G3: =ROUND((D3+4*E3+F3)/6,6) -> 3.166667 | H3: =ROUND(((F3-D3)/6)^2,6) -> 0.25 | I3: =MAX(J2) -> 7.5 | J3: =G3+I3 -> 10.666667 | K3: =L3-G3 -> 7.5 | L3: =MIN(K5,K9) -> 10.666667 | M3: =K3-I3 -> 1.065814104e-14 | N3: =MIN(I5,I9)-I3-G3 -> 0 | O3: =IF(ABS(M3)<=0.00001,"Yes","No") -> Yes | P3: Yes
A4: C | B4: Outside Plumbing | C4: A | D4: 6 | E4: 8 | F4: 14 | G4: =ROUND((D4+4*E4+F4)/6,6) -> 8.666667 | H4: =ROUND(((F4-D4)/6)^2,6) -> 1.777778 | I4: =MAX(J2) -> 7.5 | J4: =G4+I4 -> 16.166667 | K4: =L4-G4 -> 31 | L4: =MIN(K10) -> 39.666667 | M4: =K4-I4 -> 23.5 | N4: =MIN(I10)-I4-G4 -> 23.5 | O4: =IF(ABS(M4)<=0.00001,"Yes","No") -> No | P4: No
A5: D | B5: Framing | C5: B | D5: 12 | E5: 16 | F5: 22 | G5: =ROUND((D5+4*E5+F5)/6,6) -> 16.333333 | H5: =ROUND(((F5-D5)/6)^2,6) -> 2.777778 | I5: =MAX(J3) -> 10.666667 | J5: =G5+I5 -> 27 | K5: =L5-G5 -> 10.666667 | L5: =MIN(K6,K7,K8) -> 27 | M5: =K5-I5 -> 0 | N5: =MIN(I6,I7,I8)-I5-G5 -> 0 | O5: =IF(ABS(M5)<=0.00001,"Yes","No") -> Yes | P5: Yes
A6: E | B6: Inside Plumbing | C6: D | D6: 10 | E6: 12 | F6: 18 | G6: =ROUND((D6+4*E6+F6)/6,6) -> 12.666667 | H6: =ROUND(((F6-D6)/6)^2,6) -> 1.777778 | I6: =MAX(J5) -> 27 | J6: =G6+I6 -> 39.666667 | K6: =L6-G6 -> 27 | L6: =MIN(K10) -> 39.666667 | M6: =K6-I6 -> 0 | N6: =MIN(I10)-I6-G6 -> 0 | O6: =IF(ABS(M6)<=0.00001,"Yes","No") -> Yes | P6: Yes
A7: F | B7: Wiring | C7: D | D7: 9 | E7: 13 | F7: 20 | G7: =ROUND((D7+4*E7+F7)/6,6) -> 13.5 | H7: =ROUND(((F7-D7)/6)^2,6) -> 3.361111 | I7: =MAX(J5) -> 27 | J7: =G7+I7 -> 40.5 | K7: =L7-G7 -> 28.5 | L7: =MIN(K12) -> 42 | M7: =K7-I7 -> 1.5 | N7: =MIN(I12)-I7-G7 -> 1.5 | O7: =IF(ABS(M7)<=0.00001,"Yes","No") -> No | P7: No
A8: G | B8: Roofing | C8: D | D8: 5 | E8: 8 | F8: 16 | G8: =ROUND((D8+4*E8+F8)/6,6) -> 8.833333 | H8: =ROUND(((F8-D8)/6)^2,6) -> 3.361111 | I8: =MAX(J5) -> 27 | J8: =G8+I8 -> 35.833333 | K8: =L8-G8 -> 28 | L8: =MIN(K11,K14) -> 36.833333 | M8: =K8-I8 -> 1 | N8: =MIN(I11,I14)-I8-G8 -> 0 | O8: =IF(ABS(M8)<=0.00001,"Yes","No") -> No | P8: No
A9: H | B9: Brickwork | C9: B | D9: 9 | E9: 14 | F9: 18 | G9: =ROUND((D9+4*E9+F9)/6,6) -> 13.833333 | H9: =ROUND(((F9-D9)/6)^2,6) -> 2.25 | I9: =MAX(J3) -> 10.666667 | J9: =G9+I9 -> 24.5 | K9: =L9-G9 -> 23 | L9: =MIN(K14) -> 36.833333 | M9: =K9-I9 -> 12.333333 | N9: =MIN(I14)-I9-G9 -> 11.333333 | O9: =IF(ABS(M9)<=0.00001,"Yes","No") -> No | P9: No
A10: I | B10: Plumbing Inspection | C10: C,E | D10: 1 | E10: 2 | F10: 5 | G10: =ROUND((D10+4*E10+F10)/6,6) -> 2.333333 | H10: =ROUND(((F10-D10)/6)^2,6) -> 0.444444 | I10: =MAX(J4,J6) -> 39.666667 | J10: =G10+I10 -> 42 | K10: =L10-G10 -> 39.666667 | L10: =MIN(K12) -> 42 | M10: =K10-I10 -> 0 | N10: =MIN(I12)-I10-G10 -> 0 | O10: =IF(ABS(M10)<=0.00001,"Yes","No") -> Yes | P10: Yes
A11: J | B11: Shingling | C11: G | D11: 2 | E11: 4 | F11: 10 | G11: =ROUND((D11+4*E11+F11)/6,6) -> 4.666667 | H11: =ROUND(((F11-D11)/6)^2,6) -> 1.777778 | I11: =MAX(J8) -> 35.833333 | J11: =G11+I11 -> 40.5 | K11: =L11-G11 -> 37.333333 | L11: =MIN(K12) -> 42 | M11: =K11-I11 -> 1.5 | N11: =MIN(I12)-I11-G11 -> 1.5 | O11: =IF(ABS(M11)<=0.00001,"Yes","No") -> No | P11: No
A12: K | B12: Covering Walls | C12: F,I,J | D12: 3 | E12: 5 | F12: 10 | G12: =ROUND((D12+4*E12+F12)/6,6) -> 5.5 | H12: =ROUND(((F12-D12)/6)^2,6) -> 1.361111 | I12: =MAX(J7,J10,J11) -> 42 | J12: =G12+I12 -> 47.5 | K12: =L12-G12 -> 42 | L12: =MIN(K13) -> 47.5 | M12: =K12-I12 -> 0 | N12: =MIN(I13)-I12-G12 -> 0 | O12: =IF(ABS(M12)<=0.00001,"Yes","No") -> Yes | P12: Yes
A13: L | B13: Interior Finishing | C13: K | D13: 9 | E13: 12 | F13: 14 | G13: =ROUND((D13+4*E13+F13)/6,6) -> 11.833333 | H13: =ROUND(((F13-D13)/6)^2,6) -> 0.694444 | I13: =MAX(J12) -> 47.5 | J13: =G13+I13 -> 59.333333 | K13: =L13-G13 -> 47.5 | L13: =J16 -> 59.333333 | M13: =K13-I13 -> 0 | N13: =M13 -> 0 | O13: =IF(ABS(M13)<=0.00001,"Yes","No") -> Yes | P13: Yes
A14: M | B14: Exterior Finishing | C14: H,G | D14: 7 | E14: 10 | F14: 16 | G14: =ROUND((D14+4*E14+F14)/6,6) -> 10.5 | H14: =ROUND(((F14-D14)/6)^2,6) -> 2.25 | I14: =MAX(J9,J8) -> 35.833333 | J14: =G14+I14 -> 46.333333 | K14: =L14-G14 -> 36.833333 | L14: =MIN(K15) -> 47.333333 | M14: =K14-I14 -> 1 | N14: =MIN(I15)-I14-G14 -> 0 | O14: =IF(ABS(M14)<=0.00001,"Yes","No") -> No | P14: No
A15: N | B15: Landscaping | C15: M | D15: 8 | E15: 11 | F15: 20 | G15: =ROUND((D15+4*E15+F15)/6,6) -> 12 | H15: =ROUND(((F15-D15)/6)^2,6) -> 4 | I15: =MAX(J14) -> 46.333333 | J15: =G15+I15 -> 58.333333 | K15: =L15-G15 -> 47.333333 | L15: =J16 -> 59.333333 | M15: =K15-I15 -> 1 | N15: =M15 -> 1 | O15: =IF(ABS(M15)<=0.00001,"Yes","No") -> No | P15: No
I16: E[PCT] | J16: =MAX(J2:J15) -> 59.333333
I17: var[PCT] | J17: 8.666666
